Cogmind - Beta 17.1 @@@ ROGUE MODE // 2026.09.01 @ 20:02:43 Player: pickelover66 Result: Destroyed by Y-45 Defender with Beam Rifle Performance ------------- Evolutions (0) 0 Regions Visited (4) 800 Robots Destroyed (19) 95 Value Destroyed (537) 537 Prototype IDs (2) 40 Alien Tech Used (0) 0 Bonus (0) 0 TOTAL SCORE: 1472 Bonus ------- None Cogmind --------- Core Integrity 0/250 Matter 270/300 Energy 200/200 System Corruption 0% Temperature Cool (9) Movement Rolling (120) Ox2 Location -9/Recycling Parts ------- > --- POWER (1) -------- Subdweller Power Source > --- PROPULSION (2) --- Armored Wheel Armored Wheel > --- UTILITY (2) ------ High-capacity Storage Unit Terrain Scanner > --- WEAPON (2) ------- Subdweller Beam Cannon Rocket Launcher > --- INVENTORY (20) --- Ion Engine Improved Ion Engine Armored Wheel Armored Wheel Heat Sink Cooling System High-capacity Matter Pod (200) Terrain Scan Processor Utility Shielding Scrap Shield Tractor Beam Particle Gun Subdweller Beam Cannon Autogun Mining Laser Shrapnel Trap Scrap Shield Fragment (45) Scrap Shield Fragment (41) Scrap Shield Fragment (31) Peak State ------------ > --- POWER ------------ Subdweller Power Source > --- PROPULSION ------- Armored Wheel Armored Wheel > --- UTILITY ---------- High-capacity Storage Unit Terrain Scanner > --- WEAPON ----------- Subdweller Beam Cannon Rocket Launcher > --- INVENTORY -------- Ion Engine Improved Ion Engine Subdweller Monowheel Subdweller Monowheel Heat Sink Cooling System High-capacity Matter Pod Terrain Scan Processor Utility Shielding Scrap Shield Tractor Beam Particle Gun Subdweller Beam Cannon Autogun Mining Laser Shrapnel Trap Scrap Shield Fragment Scrap Shield Fragment Scrap Shield Fragment [Rating: 15] Favorites ----------- Power Ion Engine Engine Ion Engine Propulsion Compact Wheel Wheel Compact Wheel Utility High-capacity Storage Unit Device Terrain Scanner Storage High-capacity Storage Unit Weapon Particle Gun Energy Gun Particle Gun Energy Cannon Subdweller Beam Cannon Ballistic Gun Assault Rifle Launcher Rocket Launcher Special Weapon Mining Laser Build | -11 -10 -10 -10 -9 ------- Run | Yrd Mat Min Sub Rec Slots Evolved . | . . . . . Power . | . . . . . Propulsion . | . . . . . Utility . | . . . . . Weapon . | . . . . . Parts Attached 26 | 7 7 2 7 3 Power 3 | 1 1 . 1 . Engine 3 | 1 1 . 1 . Core . | . . . . . Reactor . | . . . . . Propulsion 8 | 2 1 . 3 2 Treads . | . . . . . Leg . | . . . . . Wheel 8 | 2 1 . 3 2 Hover . | . . . . . Flight . | . . . . . Utility 7 | 1 4 2 . . Device 4 | . 3 1 . . Storage 3 | 1 1 1 . . Processor . | . . . . . Hackware . | . . . . . Protection . | . . . . . Artifact . | . . . . . Weapon 8 | 3 1 . 3 1 Energy Gun 3 | 2 1 . . . Energy Cannon 2 | . . . 1 1 Ballistic Gun 1 | 1 . . . . Ballistic Cannon . | . . . . . Launcher 1 | . . . 1 . Special Weapon 1 | . . . 1 . Impact Weapon . | . . . . . Slashing Weapon . | . . . . . Piercing Weapon . | . . . . . Special Melee Weapon . | . . . . . Unidentified Prototypes . | . . . . . Parts Lost 3 | . 1 . 2 . Power . | . . . . . Propulsion 2 | . . . 2 . Utility 1 | . 1 . . . Weapon . | . . . . . Highest Loss Streak 2 | . 1 . 2 . To Critical Strikes . | . . . . . Average Backups 16 | 3 18 20 16 14 Power 1 | . 1 2 2 2 Propulsion 3 | 2 4 4 3 2 Utility 7 | . 8 10 6 6 Weapon 3 | . 1 3 3 4 Tool/Special . | . . . . . Unused Backups 26 | . 4 2 6 14 Power 3 | . . . . 3 Propulsion 7 | . 3 . 1 3 Utility 14 | . . 2 5 7 Weapon 1 | . . . . 1 Tool/Special 1 | . 1 . . . Average Slot Usage (%) 99 | . 99 100 99 100 Engine 14 | . 14 14 14 14 Wheel 27 | . 28 28 27 28 Device 13 | . 13 14 14 14 Storage 14 | . 14 14 14 14 Energy Gun 9 | . 14 14 9 . Energy Cannon 4 | . . . 4 14 Ballistic Gun 5 | . 14 14 . . Launcher 7 | . . . 12 14 Peak Build Rating 15 | 6 10 10 14 15 Average Rating 10 | 5 9 9 11 13 On Entrance 8 | . 6 10 10 14 Avg Prop Armor Cover (%) . | . . . . . Naked Turns . | . . . . . Heaviest Build 91 | 12 51 91 58 58 Greatest Support 40 | 26 32 32 40 40 Greatest Overweight (x) 2 | . 1 2 2 2 Average Overweight (x) 1 | . . 1 1 1 Largest Inventory Capacity 25 | 8 20 25 20 20 Average Capacity 19 | 6 19 20 20 20 Most Carried 21 | 6 20 21 20 20 Average Carried 18 | 3 18 19 19 19 Final Capacity 20 | 8 20 20 20 20 Final Carried 20 | 6 20 20 20 20 Class Distribution -------------------- 100% | Mutant Dominant Class ---------------- Mutant | -10/Materials Mutant | -10/Mines Mutant | -10/Subcaves Mutant | -9/Recycling Resources | -11 -10 -10 -10 -9 ----------- Run | Yrd Mat Min Sub Rec Matter Collected 856 | 158 215 116 238 129 Remotely 119 | . 3 116 . . Salvage Created 491 | . 278 . 213 . Parts 36 | . 16 . 20 . Haulers Intercepted . | . . . . . Recyclers Shooed . | . . . . . Parts Field Recycled . | . . . . . Retrieved Matter . | . . . . . Parts Self-Destructed 14 | . . . 14 . Prevented . | . . . . . Parts Restored . | . . . . . Kills | -11 -10 -10 -10 -9 ------- Run | Yrd Mat Min Sub Rec Combat Hostiles Destroyed 14 | . 5 . 9 . Guns 9 | . 5 . 4 . Cannons 1 | . . . 1 . AOE 4 | . . . 4 . Classes Destroyed 7 | . 4 . 3 . Worker 1 | . 1 . . . Operator 1 | . 1 . . . Turret 2 | . . . 2 . Watcher 1 | . 1 . . . Swarmer 4 | . . . 4 . Grunt 7 | . 5 . 2 . Subdweller 3 | . . . 3 . Best Kill Streak 4 | . 4 . 4 . Combat Bots Only 4 | . 2 . 4 . Max Kills in Single Turn 3 | . 1 . 3 . Gunslinging . | . . . . . Exploded 1 | . . . 1 . Melee . | . . . . . Uniques/NPCs Destroyed . | . . . . . Combat | -11 -10 -10 -10 -9 -------- Run | Yrd Mat Min Sub Rec Hostile Shots Fired 78 | . 20 . 57 1 Missed 30 | . 5 . 25 . Hits 48 | . 15 . 32 1 Projectile 48 | . 15 . 32 1 Critical Strikes 1 | . 1 . . . Damage Taken 684 | . 318 . 351 15 Core 254 | . 134 . 105 15 Absorbed by Shields . | . . . . . Core Remaining (%) 100 | 100 . . . . Volleys Fired 41 | . 20 . 21 . Largest 2 | . 2 . 2 . Hottest 165 | . 85 . 165 . Shots Fired 73 | . 40 . 33 . Gun 46 | . 40 . 6 . Cannon 6 | . . . 6 . Launcher 13 | . . . 13 . Special 8 | . . . 8 . Kinetic 20 | . 20 . . . Thermal 40 | . 20 . 20 . Explosive 13 | . . . 13 . Electromagnetic . | . . . . . Robot Hit Streak 11 | . 11 . 8 . Robot Miss Streak 4 | . 4 . 2 . Penetration Max . | . . . . . Secondary Targets 1 | . 1 . . . Max Gunslinging Chain 1 | . 1 . . . Shots Hit Robots 38 | . 22 . 16 . Core Hits 27 | . 13 . 14 . Critical Kills 1 | . 1 . . . Critical Parts Destroyed . | . . . . . Critical Strikes 2 | . 2 . . . Burn 1 | . 1 . . . Destroy 1 | . 1 . . . Melee Attacks . | . . . . . Impact . | . . . . . Slashing . | . . . . . Piercing . | . . . . . Sneak Attacks . | . . . . . Combat Hostiles . | . . . . . Follow-up Attacks . | . . . . . Damage Inflicted 1128 | . 429 . 699 . Guns 343 | . 266 . 77 . Cannons 133 | . . . 133 . Explosions 652 | . 163 . 489 . Melee . | . . . . . Ramming . | . . . . . Kinetic 99 | . 99 . . . Thermal 377 | . 167 . 210 . Explosive 652 | . 163 . 489 . Electromagnetic . | . . . . . Impact . | . . . . . Slashing . | . . . . . Piercing . | . . . . . Highest Corruption . | . . . . . Average Corruption . | . . . . . Corruption Purged . | . . . . . Corruption Blocked . | . . . . . Overload Shots . | . . . . . Overflow Damage 31 | . 30 . 1 . Projectiles . | . . . . . Explosions 31 | . 30 . 1 . Melee . | . . . . . Knockbacks . | . . . . . Impact . | . . . . . Kinetic . | . . . . . Secondary . | . . . . . Self-Inflicted Damage 131 | . 97 . 34 . Shots 2 | . 1 . 1 . Rammed . | . . . . . Targets Rammed . | . . . . . Kicked . | . . . . . Crushed . | . . . . . Highest Temperature 140 | . 140 . 9 . Average Temperature 37 | . 43 . 5 . Received Heat Transfer 303 | . 132 . 162 9 Siege Activations . | . . . . . Martial Activations . | . . . . . Shielding Activations . | . . . . . Robots Disrupted . | . . . . . Combat Hostiles . | . . . . . Robots Corrupted . | . . . . . Combat Hostiles . | . . . . . Parts Fried . | . . . . . Impact Corruptions . | . . . . . Robots Melted . | . . . . . Combat Hostiles . | . . . . . Parts Melted 1 | . 1 . . . Heat Transferred 888 | . 518 . 370 . Parts Sabotaged . | . . . . . Parts Stolen . | . . . . . Parts Stripped . | . . . . . Power Chain Reactions . | . . . . . Alert | -11 -10 -10 -10 -9 ------- Run | Yrd Mat Min Sub Rec Maximum Alert Level . | . . . . . Low Security (%) 100 | 100 100 100 . 100 Level 1 . | . . . . . Level 2 . | . . . . . Level 3 . | . . . . . Level 4 . | . . . . . Level 5 . | . . . . . High Security . | . . . . . Max Security . | . . . . . Peak Influence 84 | . 84 12 . 49 Initial 49 | . . 12 . 49 Average 15 | . 23 3 . 7 Influence Increases 541 | . 253 . 275 13 Destroy 0b10 Robot/C 260 | . 100 . 160 . Destroy 0b10 Robot/NC 15 | . 15 . . . Destroy Leader 42 | . 32 . 10 . Successful Hack 26 | . 13 . . 13 Disable Machine 30 | . 30 . . . Destroy Structure 18 | . 18 . . . Partial Spotted 15 | . 15 . . . Lose Combat Pursuer 135 | . 30 . 105 . Influence Decreases 541 | . 221 32 172 116 Entered New Map 74 | . . 20 . 54 Time Decay 457 | . 211 12 172 62 Lost Part 10 | . 10 . . . Squads Dispatched 2 | . 2 . . . Investigation . | . . . . . Extermination . | . . . . . Reinforcement 2 | . 2 . . . Assault . | . . . . . Garrison . | . . . . . Intercept . | . . . . . Searches Triggered . | . . . . . Construction Impeded . | . . . . . Haulers Reinforced . | . . . . . Active Scanning Responses . | . . . . . Cargo Convoy Interrupts . | . . . . . Stealth | -11 -10 -10 -10 -9 --------- Run | Yrd Mat Min Sub Rec Distress Signals 2 | . 2 . . . Communications Jammed . | . . . . . Distress Signals . | . . . . . Times Spotted 32 | . 16 . 15 1 Peak Tracking Total 6 | . 4 . 6 . Tactical Retreats 3 | . 1 . 2 . Traps | -11 -10 -10 -10 -9 ------- Run | Yrd Mat Min Sub Rec Traps Triggered 1 | . 1 . . . Indirectly . | . . . . . Trap Hack Attempts . | . . . . . Triggered . | . . . . . Disarmed . | . . . . . Reprogrammed . | . . . . . Reused . | . . . . . Traps Extracted . | . . . . . Installed . | . . . . . Triggered . | . . . . . Most Traps Carried 1 | . . . 1 1 Machines | -11 -10 -10 -10 -9 ---------- Run | Yrd Mat Min Sub Rec Machines Disabled 5 | . 2 . 3 . Max in Single Turn 2 | . 2 . 2 . Machines Repaired . | . . . . . Machines Dismantled . | . . . . . Machines Sabotaged . | . . . . . Overloaded Fab Kills . | . . . . . Hacking | -11 -10 -10 -10 -9 --------- Run | Yrd Mat Min Sub Rec Machines Accessed 9 | . 4 . . 5 Terminals 7 | . 3 . . 4 Fabricators . | . . . . . Repair Stations . | . . . . . Recycling Units 2 | . 1 . . 1 Scanalyzers . | . . . . . Garrison Access . | . . . . . Total Hacks 30 | . 11 . . 19 Successful 15 | . 8 . . 7 Failed 15 | . 3 . . 12 Catastrophic 3 | . . . . 3 Database Lockouts . | . . . . . Manual . | . . . . . Terminals 24 | . 9 . . 15 Fabricators . | . . . . . Repair Stations . | . . . . . Recycling Units 6 | . 2 . . 4 Scanalyzers . | . . . . . Garrison Access . | . . . . . Terminal Hacks 10 | . 6 . . 4 Record 2 | . 1 . . 1 Part Schematic 1 | . . . . 1 Robot Schematic 1 | . . . . 1 Prototype ID Bank 1 | . 1 . . . Emergency Access Points 2 | . 2 . . . Locate Traps 1 | . 1 . . . Maintenance Status 1 | . . . . 1 Zone Layout 1 | . 1 . . . Fabricator Hacks . | . . . . . Repair Station Hacks . | . . . . . Recycling Unit Hacks 5 | . 2 . . 3 Process 1 | . . . . 1 Report Inventory 2 | . 1 . . 1 Retrieve Matter 1 | . . . . 1 Retrieve Components 1 | . 1 . . . Scanalyzer . | . . . . . Garrison Access Hacks . | . . . . . Unauthorized Hacks . | . . . . . Terminals . | . . . . . Fabricators . | . . . . . Repair Stations . | . . . . . Recycling Units . | . . . . . Scanalyzers . | . . . . . Garrison Access . | . . . . . Data Cores Recovered . | . . . . . Used . | . . . . . Hacking Detections 7 | . 2 . . 5 Full Trace Events . | . . . . . Feedback Events . | . . . . . Feedback Blocked . | . . . . . Robot Schematics Acquired 1 | . . . . 1 Robots Built . | . . . . . Authchips . | . . . . . Time . | . . . . . Total Robot Build Rating . | . . . . . Part Schematics Acquired 1 | . . . . 1 Parts Built . | . . . . . Authchips . | . . . . . Time . | . . . . . Total Part Build Rating . | . . . . . Part Studies Acquired . | . . . . . Parts Repaired . | . . . . . Time . | . . . . . Parts Recycled . | . . . . . Recycled Matter 12 | . . . . 12 Retrieved Matter 12 | . . . . 12 Retrieved Components 3 | . 3 . . . Parts Scanalyzed . | . . . . . Part Schematics Acquired . | . . . . . Parts Damaged . | . . . . . Bothacking | -11 -10 -10 -10 -9 ------------ Run | Yrd Mat Min Sub Rec Used RIF Installer . | . . . . . Robots Hacked . | . . . . . Non-combat . | . . . . . Combat . | . . . . . Robot Hacks Applied . | . . . . . Relay Couplers Released . | . . . . . Fabnet Peak Effective % . | . . . . . Robots Rewired . | . . . . . Allies Hacked . | . . . . . Hacks Repelled . | . . . . . Allies | -11 -10 -10 -10 -9 -------- Run | Yrd Mat Min Sub Rec Total Allies . | . . . . . Largest Group . | . . . . . Highest-Rated Group . | . . . . . Highest-Rated Ally . | . . . . . Total Orders . | . . . . . Ally Attacks . | . . . . . Total Damage . | . . . . . Kills . | . . . . . Allies Corrupted . | . . . . . Allies Melted . | . . . . . Intel | -11 -10 -10 -10 -9 ------- Run | Yrd Mat Min Sub Rec Active Infowar (turns) 1759 | . 506 30 832 391 Terrain 1759 | . 506 30 832 391 Robot Analysis Total . | . . . . . Derelict Logs Recovered 1 | . . . 1 . Drone Launches . | . . . . . Drone Recoveries . | . . . . . Exploration | -11 -10 -10 -10 -9 ------------- Run | Yrd Mat Min Sub Rec Turns Passed 2027 | 55 670 79 832 391 Spaces Moved 1509 | 43 444 58 631 333 Core 1 | 1 . . . . Treads . | . . . . . Legs . | . . . . . Wheels 1508 | 42 444 58 631 333 Hover . | . . . . . Flight . | . . . . . Fastest Speed 50 | 50 90 115 107 107 Average Speed 112 | 88 111 115 116 111 Slowest Speed 130 | 90 115 130 120 120 Overloaded Moves . | . . . . . Propulsion Burnouts . | . . . . . Robots Hopped . | . . . . . Potential Cave-ins . | . . . . . Cave-ins Triggered . | . . . . . Exploration Rate (%) 34 | 4 53 19 33 65 Regions Visited 4 Branch Regions 3 Pre-discovered Areas . | . . . . . Known Exits Taken . | . . . . . Unknown Exits Taken 4 | 1 1 1 1 . Scrap Searched 4 | . . 1 3 . Spaces Dug . | . . . . . Terrain Destroyed 108 | . 22 . 86 . Melee . | . . . . . Projectile . | . . . . . AOE 108 | . 22 . 86 . Terrain Rammed . | . . . . . Walls Destroyed . | . . . . . Machines Disabled . | . . . . . Actions | -11 -10 -10 -10 -9 --------- Run | Yrd Mat Min Sub Rec Total 1743 | 56 581 71 680 355 Wait 92 | 1 85 3 3 . Move 1505 | 42 443 57 630 333 Hop . | . . . . . Pick Up 43 | 6 19 4 7 7 Fast Attach 7 | 6 1 . . . Attach 3 | . 1 . 2 . Detach . | . . . . . Swap 21 | 1 5 3 7 5 Drop 29 | . 7 4 9 9 Fire 41 | . 20 . 21 . Melee . | . . . . . Ram . | . . . . . Kick . | . . . . . Crush . | . . . . . Escape Stasis . | . . . . . Rewire 2 | . . . 1 1 Trap . | . . . . . Miscellaneous . | . . . . . Route ------- -11/Scrapyard -10/Materials (discovered 2 exits: [*Mat] / [*Min]) -10/Mines -10/Subcaves -9/Recycling History --------- Turn | Location | Event 21 | -11/Scrapyard | Discovered new exit (range 16) 56 | -11/Scrapyard | Entered Materials 265 | -10/Materials | Discovered new exit (range 7) 308 | -10/Materials | Build established: Mutant 550 | -10/Materials | Discovered new exit (range 14) 726 | -10/Materials | Core integrity fell below 50% 726 | -10/Materials | Entered Mines 788 | -10/Mines | Received a Rocket Launcher from a helpful Derelict 803 | -10/Mines | Discovered new exit (range 3) 805 | -10/Mines | Entered Subcaves 1215 | -10/Subcaves | Shifting Twisted Machinery released Sub. Beam Cannon 1219 | -10/Subcaves | Shifting Twisted Machinery released Sub. Beam Cannon 1406 | -10/Subcaves | Core integrity fell below 20% 1434 | -10/Subcaves | Learned Materials garrison access intel 1606 | -10/Subcaves | Discovered new exit (range 15) 1637 | -10/Subcaves | Entered Recycling 1638 | -9/Recycling | Met a Zionite searching for Scraptown 2028 | -9/Recycling | Destroyed by Y-45 Defender with Beam Rifle Last Messages --------------- 01927_ R-06 Scavenger collects Broken Sub. Monowheel. 01929_ Acquired Arm. Wheel. 01930_ R-06 Scavenger collects Broken Sub. Monowheel. 01934_ R-06 Scavenger collects Wheel. 01940_ Connecting with Terminal... >>Enumerate(Maintenance) Found 39 registered maintenance bots. 3 Workers 10 Builders 5 Tunnelers 21 Recyclers Downloaded coordinate data. >>Schematic(Hvy. Ion Cannon) Downloading schematic... Hvy. Ion Cannon Rating: 4 Schematic downloaded. 02028_ Y-45 Defender springs to life. Map ----- +----------------------------------------------------+ | ?#= + / ! + | | ?# #### [ #### | | ?### #### #??# " """"" | | ???# ]]####/#####+####### T """"" | | ??## ]]#??? #?# " """"" | | ???# ]#?## ### """"" | | ???# ###??? ??# """"" | | ?#?# ###??? #?# """"" | | ???# T#??? #?# """"" | | ??## ""#??? #?# | | ???# ###??? #?# | | ???# ###### #?# ##+##/##+######### | | ???# #Y# ### # #????###? | | ???#### ##? ??# """ #???#???? | | ??????# #?????# """ #??????"" | | ????#?# #?????# """ #???? """ | | ??????# #?????# #???# """ | | ?#????# #?????#? """ #???? | | #????## #?????? """ #???# | | ?????# # #?????? """ #???# | | ?????# T # #??? ????? #???# | | ?????# # #??????????####????##### | | ?????##### #??? ??????????????????? | | ?#???????# #?? ???????????????????? | | ?????????# #??????????????????????? | | ?????????# @#??????????????????????? | | ?????????# #??????????????????????? | | ????????"" T???? ?????????????????? | | ???????#"Y ##?????????????????????? | | ???????#"" #??????????????????????? | | ?????#?### #??????????????????????? | | ?????????# #??????????????????????? | | ?????????# #??????????????????????? | | ?????? ??# #????????????????????#?? | | ?????????# #?????????????????????#? | | ?????????# #??????????????????????? | | ?????????# #??????????????????????? | | ?????????+ ??????????????????????? | | ?????????# ???????????????????????? | | ?????????# ???????????????????????? | | ?????????? ?????????????????????### | | ??????????????????????????????????# | | ??????????????????????????????????# | | ??????????????????????????????????# | | ????????????????????????????????#?# | | ??????????????????????????????????# | | ??????????????????????????????????# | | ??????????????????????????????????# | | ??????????????????????????????????# | | ??????????????????????????????????# | +----------------------------------------------------+ Best States ------------- Heat Dissipation 35 Energy Generation 15 Energy Capacity 250 Matter Stores 300 Matter Capacity 300 Sight Range 16 Terrain Scan Range 14 Terrain Scan Density 10 Evasion (%) 42 Item Schematics ----------------- Hvy. Ion Cannon | -9/Recycling | Hacked Robot Schematics ------------------ Y-45 Defender | -9/Recycling | Hacked Fabricated ------------ Nothing Repaired ---------- Nothing Studied --------- None Alien Tech Used ----------------- None Achievements -------------- Do Not Disturb Challenges ------------ None Game ------ Seed ProtonLaunchAirjet Manual? 0 Play Time 00:27:44 Cumulative 36.5 hours Start 2026.09.01 @ 19:35:56 End 2026.09.01 @ 20:02:43 Sessions 1 Manual Loads 0 Difficulty Rogue Special Mode None Game No. 40 Rogue 40 Adventurer 0 Explorer 0 Win Type - Total 0 Types 0/0/0/0/0/0/0/0/0/0 Lore% 16 Gallery% 21 Achievement% 17 Wizard Run 0 Options --------- Layout 1 ASCII 0 Keyboard 1 Movement Numpad Keybinds 0 Fullscreen 1 Font 24/Smallcaps Map View 50x35 Zoom Use 0% Tactical HUD 1 Map Filters NONE Filters NONE Steam 1 RUN: 44acbd22-b6e2-4ee1-a2af-3874bfe6e9fc